[Event "Czech Open Rapid G1 2024"]
[Site "Pardubice"]
[Date "2024.07.17"]
[Round "1.20"]
[White "Kulon, Klaudia"]
[Black "Lihotsky, Lukas"]
[Result "1-0"]
[Annotator "TA"]
[ECO "A22"]
[WhiteElo "2380"]
[BlackElo "2129"]
[PlyCount "83"]
[EventDate "2024.07.16"]
[EventType "swiss"]
[EventCountry "CZE"]
[SourceTitle "playchess.com"]
[Source "ChessBase"]
[SourceQuality "1"]
[TimeControl "1200+10"]

{[%evp 25,82,0,0,0,0,-53,-38,-53,64,-4,64,-26,-4,-22,17,24,20,20,27,-29,25,33,41,0,0,0,0,-33,-32,-331,-331,-287,-41,-116,-102,-166,0,0,0,0,376,137,587,615,2985,3042,2445,2067,1843,181,367,28,356,373,354,353,310,317,29999]} 1. c4 {[%emt 0:00:01]} e5 {[%emt 0:00:10]} 2. g3 {[%emt 0:00:03]} Nf6 {[%emt 0:00:01]} 3. Bg2 {[%emt 0:00:01]} d5 {[%emt 0:00:03]} 4. cxd5 {[%emt 0:00:02]} Nxd5 {[%emt 0:00:01]} 5. Nc3 {[%emt 0:00:01]} Nb6 {[%emt 0:00:01]} 6. e3 {[%emt 0:00:08]} Be7 {[%emt 0:00:59] A22: English Opening: 1...e5 2 Nc3 Nf6.} 7. Nge2 {[%emt 0:00:02]} O-O {[%emt 0:00:26]} 8. O-O {[%emt 0:00:08]} c6 {[%emt 0:03:26]} 9. f4 {[%emt 0:00:02]} exf4 {[%emt 0:01:15]} 10. Nxf4 {[%emt 0:00:03]} N8d7 {[%emt 0:00:19]} 11. d4 {[%emt 0:00:02]} c5 {[%emt 0:06:11]} 12. d5 $146 {[%emt 0:00:03]} ({Predecessor:} 12. b3 cxd4 13. exd4 Nf6 14. Bb2 Bg4 15. Qd2 Qd7 16. Nd1 Nbd5 17. Nd3 Bh3 18. Ne5 {0-1 Rodi,L (2358)-Vazquez,F (2163) URU-ch 92nd Montevideo 2021 (6)}) 12... Ne5 {[%emt 0:00:20]} 13. e4 {[%emt 0:00:53]} Nbc4 {[%emt 0:02:05]} 14. b3 {[%emt 0:00:33]} Nd6 {[%emt 0:00:20]} 15. h3 {[%emt 0:00:02]} (15. Bb2 $11) 15... Bd7 $15 {[%emt 0:00:42]} 16. Bb2 {[%emt 0:00:42]} f6 {[%emt 0:00:45]} (16... Bf6 $15) 17. Rc1 {[%emt 0:00:19]} (17. Ne6 $1 $14 Qe8 18. Nxf8 (18. Nxc5 Ndc4 $14) 18... Bxf8 19. Kh2) 17... b5 {[%emt 0:00:13]} (17... Qa5 $11) 18. Nce2 {[%emt 0:00:16]} (18. Ne6 $14 Qb6 19. Nxf8 Bxf8 20. Ne2) 18... c4 $11 {[%emt 0:01:08]} 19. Nd4 {[%emt 0:00:02]} Qb6 {[%emt 0:00:09]} 20. Kh2 {[%emt 0:00:08]} Rfc8 {[%emt 0:01:13]} 21. Nde6 {[%emt 0:00:14]} Ndf7 $1 {[%emt 0:00:28]} 22. h4 {[%emt 0:00:43]} ({White should try} 22. Bd4 Qa6 23. h4) 22... a5 {[%emt 0:00:24]} (22... Qa5 $142) 23. Bd4 $11 {[%emt 0:00:03]} Qb7 {[%emt 0:00:10]} 24. Nh5 {[%emt 0:00:20]} Bxe6 {[%emt 0:00:45]} 25. dxe6 {[%emt 0:00:02]} Nh6 {[%emt 0:00:12]} 26. Bxe5 {[%emt 0:01:27]} fxe5 {[%emt 0:00:05]} 27. Rf7 $2 {[%emt 0:01:12][%mdl 8192]} (27. bxc4 $15 Rxc4 28. Qd5 Qxd5 29. exd5) 27... Nxf7 $19 {[%emt 0:01:22]} 28. exf7+ {[%emt 0:00:01]} Kxf7 $2 {[%emt 0:00:03]} ({Black should play} 28... Kh8 $1 $19 {...cxb3 is the strong threat.} 29. Nxg7 Kxg7 30. Qg4+ Kh8 (30... Kxf7 $2 31. Rf1+ Bf6 32. Qh5+ Kg8 33. Rxf6 $19)) 29. Qg4 {[%emt 0:00:02]} ({Better is} 29. Bh3 $15 Qc6 (29... Qxe4 $2 30. Bg2 $18) 30. Bxc8 Rxc8 31. Qg4) 29... Bf8 $17 {[%emt 0:01:14]} 30. Bh3 {[%emt 0:00:23] [#]} Kg8 $2 {[%emt 0:00:19]} (30... Rc6 $1 $19 {Strongly threatening ...Kg8.} 31. Rd1 Ra7 32. bxc4 bxc4 33. Qf5+ Kg8 34. Qxe5 Kh8) 31. Nf6+ $1 $11 {[%emt 0:00:31]} Kh8 {[%emt 0:00:01]} 32. Nxh7 $1 {[%emt 0:00:05]} Qf7 $2 {[%emt 0:00:24][%mdl 8192]} (32... cxb3 33. Qg6 Ra6 (33... Rxc1 34. Ng5 Rc2+ 35. Bg2) 34. Qf5 (34. Bxc8 Rxg6 35. Bxb7 b2 $11)) (32... g6 $11 33. Nxf8 Rxf8 34. Qxg6 Qh7) 33. Ng5 $2 {[%emt 0:00:09]} (33. Rf1 $18 {is the precise move to win.} Qg8 34. Ng5 (34. Qxc8 $2 Rxc8 35. Bxc8 Kxh7 $19)) 33... Qg6 $2 {[%emt 0:00:04][%mdl 8192] [#]} (33... Qe8 $16) 34. h5 $1 $18 {[%emt 0:00:53]} Qb6 {[%emt 0:00:13]} 35. Qf5 {[%emt 0:00:57]} (35. Qxc8 $2 Qf2+ (35... Rxc8 $2 36. Be6 $19) 36. Kh1 Rxc8 37. Bxc8 Be7 $19 (37... Qxa2 $2 38. Rf1 $19) (37... Qxg3 $2 38. Nf7+ Kg8 39. Rf1 $19)) (35. Nf7+ Kg8 36. Nxe5 Re8 $15) 35... g6 {[%emt 0:00:08]} 36. hxg6 {[%emt 0:00:02]} (36. Qxc8 $2 Qf2+ (36... Rxc8 $2 37. Bxc8 Qe3 38. Nf7+ Kg7 39. Rc2 $19) 37. Bg2 Rxc8 $19) 36... Bg7 {[%emt 0:00:09]} 37. Bg2 $2 {[%emt 0:00:03]} (37. Qxc8+ $2 Rxc8 38. Nf7+ Kg8 39. Bxc8 Qxg6 40. bxc4 bxc4 $19 (40... Kxf7 $2 41. Rf1+ Bf6 42. cxb5 $19) (40... Qxf7 $2 41. cxb5 Qxa2+ 42. Kh3 $19)) (37. Nf7+ Kg8 38. Nh6+ (38. Qxc8+ $2 Rxc8 39. Bxc8 Qxg6 $19) 38... Kh8 39. Qh5 (39. Qxc8+ $2 Rxc8 40. Nf7+ Kg8 $19) (39. Nf7+ Kg8 $18) 39... Qf2+ 40. Bg2) 37... Kg8 $2 {[%emt 0:00:17]} (37... Rc6) 38. Qf7+ {[%emt 0:00:53]} Kh8 {[%emt 0:00:01]} 39. Ne6 {[%emt 0:00:09]} (39. bxc4 Rf8 (39... Qf6 40. Rf1 $16) 40. c5 Qf6 41. Qxf6 Rxf6 42. Nf7+ Kg8 $15) 39... Ra7 {[%emt 0:00:17]} 40. Qf5 {[%emt 0:00:02]} Kg8 {[%emt 0:00:14]} 41. Qh3 {[%emt 0:00:56]} ({Don't take} 41. Nxg7 Rf8 42. Qe6+ (42. Qxe5 Rxg7 43. Qd5+ Kh8 $11) 42... Qxe6 43. Nxe6 Rc8 44. bxc4 bxc4 $18) 41... Re8 $2 {[%emt 0:00:12]} (41... Bh8 $18) 42. Qh7# {[%emt 0:00:03]} 1-0

[Event "Czech Open Rapid G1 2024"]
[Site "Pardubice"]
[Date "2024.07.17"]
[Round "1.21"]
[White "Danek, Pavel"]
[Black "Jares, Michal"]
[Result "0-1"]
[Annotator "RC"]
[ECO "D03"]
[WhiteElo "1940"]
[BlackElo "2382"]
[PlyCount "78"]
[EventDate "2024.07.16"]
[EventType "swiss"]
[EventCountry "CZE"]
[SourceTitle "playchess.com"]
[Source "ChessBase"]
[SourceQuality "1"]
[TimeControl "1200+10"]

1. d4 {[%emt 0:00:01]} Nf6 {[%emt 0:00:02]} 2. Nf3 {[%emt 0:00:01]} e6 {[%emt 0:00:04]} 3. Bg5 {[%emt 0:00:01]} d5 {[%emt 0:00:04]} 4. Nbd2 {[%emt 0:00:02]} Be7 {[%emt 0:00:04]} 5. e3 {[%emt 0:00:02]} O-O {[%emt 0:00:04]} 6. Bd3 {[%emt 0:00:01]} h6 {[%emt 0:00:05]} 7. Bh4 {[%emt 0:00:01]} b6 {[%emt 0:00:05]} 8. Qe2 {[%emt 0:00:21]} Bb7 {[%emt 0:00:05]} 9. Ne5 {[%emt 0:00:08]} Nbd7 {[%emt 0:00:17]} 10. f4 {[%emt 0:00:01]} c5 {[%emt 0:00:52]} 11. c3 {[%emt 0:00:18]} Rc8 {[%emt 0:01:31]} 12. O-O {[%emt 0:00:06]} Ne4 {[%emt 0:02:34]} 13. Bxe7 {[%emt 0:00:04]} Qxe7 {[%emt 0:00:02]} 14. Nxd7 {[%emt 0:02:23]} Qxd7 {[%emt 0:00:02]} 15. Nxe4 {[%emt 0:00:03]} dxe4 {[%emt 0:00:03]} 16. Bb5 {[%emt 0:00:49]} Qd5 {[%emt 0:00:48]} 17. Rfd1 {[%emt 0:01:35]} c4 {[%emt 0:00:23]} 18. Ba4 {[%emt 0:00:06]} b5 {[%emt 0:01:47]} 19. Bc2 {[%emt 0:00:04]} a5 {[%emt 0:00:03]} 20. a3 {[%emt 0:00:46]} Bc6 {[%emt 0:00:13]} 21. Kh1 {[%emt 0:00:14]} Rb8 {[%emt 0:00:12]} 22. g4 {[%emt 0:00:09]} b4 {[%emt 0:00:31]} 23. Rg1 {[%emt 0:01:06]} f6 {[%emt 0:03:15]} 24. axb4 {[%emt 0:01:26]} axb4 {[%emt 0:00:02]} 25. Raf1 {[%emt 0:00:03]} bxc3 {[%emt 0:00:24]} 26. bxc3 {[%emt 0:00:02]} Rb2 {[%emt 0:00:03]} 27. g5 {[%emt 0:00:43]} fxg5 {[%emt 0:03:07]} 28. fxg5 {[%emt 0:00:38]} Rxf1 {[%emt 0:00:02]} 29. Rxf1 {[%emt 0:00:12]} Qxg5 {[%emt 0:00:27]} 30. Rg1 {[%emt 0:00:23]} Qf5 {[%emt 0:00:26]} 31. Rf1 {[%emt 0:01:53]} Rxc2 {[%emt 0:00:22]} 32. Qd1 {[%emt 0:00:56]} Qf3+ {[%emt 0:02:49]} 33. Rxf3 {[%emt 0:00:20]} exf3 {[%emt 0:00:02]} 34. Kg1 {[%emt 0:02:59]} f2+ {[%emt 0:00:02]} 35. Kf1 {[%emt 0:00:15]} Be4 {[%emt 0:00:06]} 36. Qxc2 {[%emt 0:00:39]} Bxc2 {[%emt 0:00:03]} 37. Kxf2 {[%emt 0:00:01]} Kf7 {[%emt 0:00:05]} 38. Kf3 {[%emt 0:00:01]} Kf6 {[%emt 0:00:06]} 39. h4 {[%emt 0:00:05]} Kf5 {[%emt 0:00:04]} 0-1

[Event "Czech Open Rapid G1 2024"]
[Site "Pardubice"]
[Date "2024.07.17"]
[Round "1.22"]
[White "Seger, Ruediger"]
[Black "Filindash, Nikita"]
[Result "1-0"]
[Annotator "RC"]
[ECO "B22"]
[WhiteElo "2264"]
[BlackElo "2007"]
[PlyCount "77"]
[EventDate "2024.07.16"]
[EventType "swiss"]
[EventCountry "CZE"]
[SourceTitle "playchess.com"]
[Source "ChessBase"]
[SourceQuality "1"]
[TimeControl "1200+10"]

1. e4 {[%emt 0:00:03]} c5 {[%emt 0:00:01]} 2. c3 {[%emt 0:00:01]} Nf6 {[%emt 0:00:01]} 3. e5 {[%emt 0:00:02]} Nd5 {[%emt 0:00:01]} 4. d4 {[%emt 0:00:02]} cxd4 {[%emt 0:00:01]} 5. Nf3 {[%emt 0:00:01]} e6 {[%emt 0:00:01]} 6. cxd4 {[%emt 0:00:03]} d6 {[%emt 0:00:02]} 7. Bc4 {[%emt 0:00:09]} Be7 {[%emt 0:00:06]} 8. O-O {[%emt 0:00:06]} O-O {[%emt 0:00:02]} 9. Re1 {[%emt 0:00:08]} Bd7 {[%emt 0:00:06]} 10. Bxd5 {[%emt 0:00:13]} exd5 {[%emt 0:00:01]} 11. Nc3 {[%emt 0:00:01]} Be6 {[%emt 0:06:59]} 12. Bf4 {[%emt 0:02:24]} Nc6 {[%emt 0:00:29]} 13. h3 {[%emt 0:01:59]} a6 {[%emt 0:00:51]} 14. Rc1 {[%emt 0:01:49]} Rc8 {[%emt 0:00:13]} 15. Qd2 {[%emt 0:00:50]} b5 {[%emt 0:00:22]} 16. exd6 {[%emt 0:06:12]} Bxd6 {[%emt 0:00:02]} 17. Bxd6 {[%emt 0:00:05]} Qxd6 {[%emt 0:00:02]} 18. Ne2 {[%emt 0:00:13]} Rfe8 {[%emt 0:01:07]} 19. a3 {[%emt 0:00:17]} a5 {[%emt 0:03:50]} 20. Qf4 {[%emt 0:00:20]} Qxf4 {[%emt 0:04:12]} 21. Nxf4 {[%emt 0:00:02]} a4 {[%emt 0:00:02]} 22. Kf1 {[%emt 0:03:05]} h6 {[%emt 0:00:56]} 23. Rc5 {[%emt 0:00:11]} Na7 {[%emt 0:03:01]} 24. Nxd5 {[%emt 0:02:28]} Rxc5 {[%emt 0:00:17]} 25. dxc5 {[%emt 0:00:03]} Rd8 {[%emt 0:00:19]} 26. Ne3 {[%emt 0:00:04]} Rc8 {[%emt 0:00:13]} 27. Rc1 {[%emt 0:00:12]} Nc6 {[%emt 0:00:34]} 28. Ke1 {[%emt 0:01:01]} Kf8 {[%emt 0:00:43]} 29. g4 {[%emt 0:00:22]} f6 {[%emt 0:00:12]} 30. Rc3 {[%emt 0:00:48]} g6 {[%emt 0:00:04]} 31. Nc2 {[%emt 0:00:35]} Re8 {[%emt 0:00:16]} 32. Re3 {[%emt 0:00:08]} Bd5 {[%emt 0:00:11]} 33. Nfd4 {[%emt 0:00:44]} Ne5 {[%emt 0:00:10]} 34. Nb4 {[%emt 0:00:33]} Bc4 {[%emt 0:00:10]} 35. Kd2 {[%emt 0:00:19]} Rc8 {[%emt 0:00:07]} 36. f4 {[%emt 0:00:05]} Nd7 {[%emt 0:00:08]} 37. c6 {[%emt 0:00:06]} Nc5 {[%emt 0:00:08]} 38. Kc3 {[%emt 0:00:17]} Bf7 {[%emt 0:00:06]} 39. Nxb5 {[%emt 0:00:08]} 1-0

[Event "Czech Open Rapid G1 2024"]
[Site "Pardubice"]
[Date "2024.07.17"]
[Round "1.23"]
[White "Sichrovsky, Tomas"]
[Black "Mica, Marek"]
[Result "1/2-1/2"]
[Annotator "TA"]
[ECO "D35"]
[WhiteElo "1933"]
[BlackElo "2375"]
[PlyCount "64"]
[EventDate "2024.07.16"]
[EventType "swiss"]
[EventCountry "CZE"]
[SourceTitle "playchess.com"]
[Source "ChessBase"]
[SourceQuality "1"]
[TimeControl "1200+10"]

{[%evp 12,64,16,23,17,18,21,16,17,12,15,15,21,10,16,14,22,11,26,0,24,22,37,39,41,56,137,127,132,56,58,60,68,21,11,25,86,0,2,-5,41,46,71,47,59,46,58,21,24,13,17,30,33,33,26]} 1. d4 {[%emt 0:00:02]} Nf6 {[%emt 0:00:02]} 2. c4 {[%emt 0:00:01]} e6 {[%emt 0:00:01]} 3. Nc3 {[%emt 0:00:02]} d5 {[%emt 0:00:02]} 4. cxd5 {[%emt 0:00:01]} exd5 {[%emt 0:00:01]} 5. Bg5 {[%emt 0:00:02][%cal Bc1g5,Bg5h4,Bh4g3][%mdl 32]} c6 {[%emt 0:00:08]} 6. e3 {[%emt 0:00:02]} h6 {[%emt 0:00:06]} 7. Bh4 {[%emt 0:00:02]} Bd6 {[%emt 0:00:08]} 8. Bd3 {[%emt 0:00:04]} O-O {[%emt 0:00:04]} 9. Nge2 {[%emt 0:00:07]} Re8 {[%emt 0:00:04] The position is equal.} 10. Qc2 {[%emt 0:00:17]} a5 {[%emt 0:00:03]} 11. Bg3 {[%emt 0:00:19]} Na6 {[%emt 0:00:07][%cal Bb8a6,Ba6c7,Bc7e6][%mdl 32]} 12. a3 {[%emt 0:00:12] Dodges Nb4} Nc7 {[%emt 0:00:03]} 13. O-O {[%emt 0:00:15]} Ne6 {[%emt 0:00:42]} 14. f3 {[%emt 0:00:21]} Bxg3 {[%emt 0:05:24]} 15. Nxg3 {[%emt 0:00:02][%cal Be2g3,Bg3f5,Bf5h4,Bh4f3,Bf3e5][%mdl 32]} b6 {[%emt 0:00:19]} (15... h5 $5) 16. Rfe1 {[%emt 0:02:19]} Bb7 {[%emt 0:00:30]} 17. Rad1 {[%emt 0:00:28]} Rc8 {[%emt 0:00:29][%cal Ba8c8,Bc8c7,Bc7d7][%mdl 32]} 18. Nf5 {[%emt 0:02:12]} Kh8 {[%emt 0:01:36]} (18... Ra8 $14) 19. Qf2 $16 {[%emt 0:01:11]} Rc7 {[%emt 0:03:46]} 20. Qh4 {[%emt 0:04:53]} (20. e4 $16) 20... Ng8 $14 {[%emt 0:01:46]} 21. Qg3 {[%emt 0:02:17]} Rd7 {[%emt 0:01:26]} 22. Ne2 {[%emt 0:01:18] White is much more active.} (22. f4 $14) 22... g6 $11 {[%emt 0:00:51]} 23. Nh4 {[%emt 0:00:01]} Qg5 {[%emt 0:01:10]} (23... Rc7 $11) 24. Kf2 {[%emt 0:00:28]} ({White should play} 24. Qf2 $16) 24... Qxg3+ {[%emt 0:00:20]} 25. Nxg3 {[%emt 0:00:17]} Ne7 {[%emt 0:00:10]} (25... Kg7 $11) 26. f4 $14 {[%emt 0:01:05]} f5 {[%emt 0:02:04]} 27. Nf3 {[%emt 0:00:11]} Kg7 {[%emt 0:00:06]} 28. Ne5 {[%emt 0:00:04]} Rc7 {[%emt 0:00:02]} 29. h4 {[%emt 0:00:18]} h5 {[%emt 0:00:47]} 30. Rc1 {[%emt 0:00:52]} Nc8 {[%emt 0:00:28]} 31. b4 {[%emt 0:00:31]} axb4 {[%emt 0:00:36]} 32. axb4 {[%emt 0:00:01]} Nd6 {[%emt 0:00:01] Weighted Error Value: White=0.14 (very precise) /Black=0.13 (very precise) .  Mistake:       	White=3     	Black=3      Inaccurate:     	White=2     	---        OK:         	White=11    	Black=9} 1/2-1/2

[Event "Czech Open Rapid G1 2024"]
[Site "Pardubice"]
[Date "2024.07.17"]
[Round "1.24"]
[White "Krak, Tomas"]
[Black "Tesar, Jan"]
[Result "1-0"]
[Annotator "RC"]
[ECO "A28"]
[WhiteElo "2229"]
[BlackElo "1929"]
[PlyCount "75"]
[EventDate "2024.07.16"]
[EventType "swiss"]
[EventCountry "CZE"]
[SourceTitle "playchess.com"]
[Source "ChessBase"]
[SourceQuality "1"]
[TimeControl "1200+10"]

1. c4 {[%emt 0:00:04]} e5 {[%emt 0:00:20]} 2. Nc3 {[%emt 0:00:02]} Nf6 {[%emt 0:00:03]} 3. Nf3 {[%emt 0:00:01]} Nc6 {[%emt 0:00:03]} 4. e4 {[%emt 0:00:01]} d6 {[%emt 0:00:15]} 5. d3 {[%emt 0:00:52]} g6 {[%emt 0:00:06]} 6. Be2 {[%emt 0:00:12]} Bg7 {[%emt 0:00:03]} 7. h3 {[%emt 0:00:58]} O-O {[%emt 0:00:07]} 8. g4 {[%emt 0:00:47]} Ne7 {[%emt 0:00:49]} 9. Bg5 {[%emt 0:00:56]} Ne8 {[%emt 0:00:49]} 10. Qd2 {[%emt 0:00:19]} f6 {[%emt 0:02:43]} 11. Be3 {[%emt 0:02:04]} c6 {[%emt 0:00:44]} 12. O-O-O {[%emt 0:01:05]} a6 {[%emt 0:00:46]} 13. d4 {[%emt 0:00:37]} f5 {[%emt 0:02:46]} 14. gxf5 {[%emt 0:00:23]} gxf5 {[%emt 0:00:04]} 15. dxe5 {[%emt 0:00:06]} fxe4 {[%emt 0:00:23]} 16. Nxe4 {[%emt 0:00:56]} d5 {[%emt 0:00:22]} 17. Bg5 {[%emt 0:05:44]} Qc7 {[%emt 0:00:32]} 18. Nc3 {[%emt 0:02:00]} dxc4 {[%emt 0:02:38]} 19. Qd8 {[%emt 0:04:31]} Ng6 {[%emt 0:01:42]} 20. Bxc4+ {[%emt 0:00:41]} Kh8 {[%emt 0:00:02]} 21. Bf6 {[%emt 0:00:33]} Be6 {[%emt 0:04:01]} 22. Qxc7 {[%emt 0:00:26]} Nxc7 {[%emt 0:00:04]} 23. Bxe6 {[%emt 0:00:09]} Nxe6 {[%emt 0:00:04]} 24. Bxg7+ {[%emt 0:00:10]} Nxg7 {[%emt 0:00:21]} 25. Rd3 {[%emt 0:00:01]} Rf5 {[%emt 0:00:19]} 26. Re1 {[%emt 0:00:08]} Raf8 {[%emt 0:00:08]} 27. Ree3 {[%emt 0:00:11]} Ne6 {[%emt 0:00:32]} 28. Ne4 {[%emt 0:00:30]} Nxe5 {[%emt 0:00:17]} 29. Nxe5 {[%emt 0:00:07]} Rxe5 {[%emt 0:00:02]} 30. f3 {[%emt 0:00:09]} Rf7 {[%emt 0:00:09]} 31. Nd6 {[%emt 0:00:13]} Rc5+ {[%emt 0:00:41]} 32. Kd2 {[%emt 0:00:01]} Rf6 {[%emt 0:00:11]} 33. Ne4 {[%emt 0:00:05]} Rff5 {[%emt 0:00:58]} 34. Nxc5 {[%emt 0:00:04]} Nxc5 {[%emt 0:00:01]} 35. Rd4 {[%emt 0:00:13]} Rg5 {[%emt 0:00:10]} 36. Re7 {[%emt 0:00:08]} Rg8 {[%emt 0:00:14]} 37. b4 {[%emt 0:00:06]} Na4 {[%emt 0:00:18]} 38. Rxb7 {[%emt 0:00:23]} 1-0

[Event "Czech Open Rapid G1 2024"]
[Site "Pardubice"]
[Date "2024.07.17"]
[Round "1.25"]
[White "Migalko, Dmitriy"]
[Black "Abdulov, Orkhan"]
[Result "0-1"]
[Annotator "TA"]
[ECO "B33"]
[WhiteElo "1856"]
[BlackElo "2382"]
[PlyCount "76"]
[EventDate "2024.07.16"]
[EventType "swiss"]
[EventCountry "CZE"]
[SourceTitle "playchess.com"]
[Source "ChessBase"]
[SourceQuality "1"]
[TimeControl "1200+10"]

{[%evp 19,76,-18,-34,-31,-4,-34,0,0,41,12,21,-226,-229,-287,-287,-284,-276,-273,-281,-316,-308,-308,-266,-303,-309,-345,-347,-393,-397,-414,-365,-398,-396,-404,-394,-382,-367,-397,-391,-464,-445,-477,-447,-472,-458,-482,-468,-443,-470,-509,-511,-589,-593,-748,-750,-812,-721,-29969,-29962]} 1. e4 {[%emt 0:00:02]} c5 {[%emt 0:00:03]} 2. Nf3 {[%emt 0:00:02]} Nc6 {[%emt 0:00:01]} 3. d4 {[%emt 0:00:08]} cxd4 {[%emt 0:00:03]} 4. Nxd4 {[%emt 0:00:01]} Nf6 {[%emt 0:00:02]} 5. Nc3 {[%emt 0:00:04]} e5 {[%emt 0:00:04]} 6. Nb3 {[%emt 0:00:41]} Bb4 {[%emt 0:00:34]} 7. Bd3 {[%emt 0:02:00]} d5 {[%emt 0:00:09]} 8. exd5 {[%emt 0:00:20]} Nxd5 {[%emt 0:00:09]} 9. Bd2 {[%emt 0:00:33]} Nxc3 {[%emt 0:00:11]} 10. bxc3 {[%emt 0:00:21]} Bd6 {[%emt 0:00:27]} 11. Qh5 {[%emt 0:00:58][%cal Oe1g1]} Be6 {[%emt 0:02:11]} 12. O-O {[%emt 0:00:45]} g6 {[%emt 0:00:18]} 13. Qh6 {[%emt 0:01:34] The position is equal.} Qe7 {[%emt 0:01:12]} 14. Bg5 {[%emt 0:00:31]} (14. Rfe1 $5) 14... f6 {[%emt 0:00:25]} 15. Bxg6+ $2 {[%emt 0:00:20] [#] Loses the game.} (15. Be3 $11) 15... Kd7 $19 {[%emt 0:00:08][%cal Oh7g6]} 16. Bxf6 {[%emt 0:00:11]} Qxf6 {[%emt 0:00:02]} 17. Be8+ {[%emt 0:00:01]} Ke7 $1 {[%emt 0:00:02]} (17... Kxe8 $2 18. Qxf6 Kd7 19. Rfd1 $18) 18. Qxf6+ {[%emt 0:00:39]} Kxf6 {[%emt 0:00:03]} 19. Bxc6 {[%emt 0:00:13]} bxc6 {[%emt 0:00:04]} 20. Rad1 {[%emt 0:00:08]} Ke7 {[%emt 0:01:49]} 21. Na5 {[%emt 0:00:27]} Rac8 {[%emt 0:00:09]} (21... Bxa2 22. Nxc6+ Ke6 23. Rfe1) 22. Rb1 {[%emt 0:00:39]} Rc7 {[%emt 0:00:15]} 23. a4 {[%emt 0:01:29]} Rf8 {[%emt 0:00:19]} 24. Nb7 {[%emt 0:00:53]} Rb8 {[%emt 0:01:05]} 25. Nxd6 {[%emt 0:00:34]} Rxb1 {[%emt 0:00:02]} 26. Rxb1 {[%emt 0:00:04]} Kxd6 {[%emt 0:00:01][%mdl 4096] Endgame. KRB-KR} 27. a5 {[%emt 0:00:27]} Kc5 {[%emt 0:00:14]} 28. Re1 {[%emt 0:00:26]} Kd5 {[%emt 0:00:27]} 29. f4 {[%emt 0:00:37]} exf4 {[%emt 0:00:21]} 30. c4+ {[%emt 0:00:08]} Kd6 $1 {[%emt 0:00:16]} ({Less strong is} 30... Kxc4 31. Rxe6 c5 32. Kf2 $17) 31. c5+ {[%emt 0:00:08]} Ke7 {[%emt 0:02:22]} ({Weaker is} 31... Kxc5 32. Rxe6 Kb4 33. Re5 $15) 32. Re4 {[%emt 0:00:51]} Rb7 {[%emt 0:00:37]} 33. Rxf4 {[%emt 0:00:46]} Rb5 {[%emt 0:00:37]} 34. Rh4 {[%emt 0:00:08]} Bf5 {[%emt 0:00:18]} 35. c4 {[%emt 0:02:01]} Rxa5 {[%emt 0:00:20]} 36. Rh5 {[%emt 0:00:12]} Bg6 {[%emt 0:00:10]} ({Not} 36... Rxc5 37. g4 $15) 37. Rh6 {[%emt 0:00:45]} Rxc5 {[%emt 0:00:21]} 38. h4 {[%emt 0:00:03]} a5 {[%emt 0:00:20] Weighted Error Value: White=0.65/Black=0.14 (very precise) .  Loses game:     	White=1     	---        Inaccurate:     	White=1     	Black=3      OK:         	White=8     	Black=13     Best:        	---       	Black=1      Strong:       	---       	Black=2} 0-1

[Event "Czech Open Rapid G1 2024"]
[Site "Pardubice"]
[Date "2024.07.17"]
[Round "1.26"]
[White "Sherman, Raem"]
[Black "Gu In-Jung"]
[Result "1-0"]
[Annotator "RC"]
[ECO "B81"]
[WhiteElo "2358"]
[BlackElo "1960"]
[PlyCount "121"]
[EventDate "2024.07.16"]
[EventType "swiss"]
[EventCountry "CZE"]
[SourceTitle "playchess.com"]
[Source "ChessBase"]
[SourceQuality "1"]
[TimeControl "1200+10"]

1. e4 {[%emt 0:00:20]} c5 {[%emt 0:00:05]} 2. Nf3 {[%emt 0:00:10]} d6 {[%emt 0:00:02]} 3. d4 {[%emt 0:00:17]} cxd4 {[%emt 0:00:02]} 4. Nxd4 {[%emt 0:00:02]} Nf6 {[%emt 0:00:02]} 5. Nc3 {[%emt 0:00:03]} a6 {[%emt 0:00:16]} 6. h3 {[%emt 0:00:09]} e6 {[%emt 0:02:17]} 7. g4 {[%emt 0:00:03]} h6 {[%emt 0:00:01]} 8. Bg2 {[%emt 0:00:16]} Qc7 {[%emt 0:01:33]} 9. Be3 {[%emt 0:02:10]} b5 {[%emt 0:00:34]} 10. e5 {[%emt 0:03:42]} Bb7 {[%emt 0:00:55]} 11. exd6 {[%emt 0:00:03]} Bxd6 {[%emt 0:00:14]} 12. Bxb7 {[%emt 0:03:03]} Qxb7 {[%emt 0:00:01]} 13. O-O {[%emt 0:00:57]} Be7 {[%emt 0:02:40]} 14. Qf3 {[%emt 0:00:33]} Qxf3 {[%emt 0:00:04]} 15. Nxf3 {[%emt 0:00:03]} Nc6 {[%emt 0:00:26]} 16. a3 {[%emt 0:01:28]} O-O {[%emt 0:00:05]} 17. Rfd1 {[%emt 0:00:14]} Rac8 {[%emt 0:00:40]} 18. Kf1 {[%emt 0:00:38]} Na5 {[%emt 0:00:02]} 19. Ne5 {[%emt 0:00:13]} Nc4 {[%emt 0:00:01]} 20. Nxc4 {[%emt 0:00:04]} Rxc4 {[%emt 0:00:01]} 21. Rd3 {[%emt 0:01:40]} Rfc8 {[%emt 0:00:11]} 22. Bd2 {[%emt 0:00:33]} Bc5 {[%emt 0:01:59]} 23. Rd1 {[%emt 0:00:55]} b4 {[%emt 0:02:33]} 24. axb4 {[%emt 0:01:51]} Bxb4 {[%emt 0:00:01]} 25. Ra1 {[%emt 0:00:03]} a5 {[%emt 0:00:25]} 26. Be1 {[%emt 0:00:01]} Kh7 {[%emt 0:01:57]} 27. Rad1 {[%emt 0:00:38]} Bxc3 {[%emt 0:00:46]} 28. Rxc3 {[%emt 0:00:57]} Rxc3 {[%emt 0:00:46]} 29. Bxc3 {[%emt 0:00:04]} Nd5 {[%emt 0:00:02]} 30. Bxa5 {[%emt 0:00:18]} Rxc2 {[%emt 0:00:02]} 31. Rb1 {[%emt 0:00:21]} Rc5 {[%emt 0:04:25]} 32. Bd2 {[%emt 0:00:05]} f5 {[%emt 0:00:48]} 33. b4 {[%emt 0:00:08]} Rb5 {[%emt 0:00:00]} 34. Ke2 {[%emt 0:00:08]} Kg6 {[%emt 0:00:36]} 35. Kd3 {[%emt 0:00:07]} h5 {[%emt 0:00:01]} 36. Kc4 {[%emt 0:00:39]} Rb6 {[%emt 0:00:01]} 37. f3 {[%emt 0:00:23]} f4 {[%emt 0:00:43]} 38. b5 {[%emt 0:00:12]} Kg5 {[%emt 0:00:07]} 39. Be1 {[%emt 0:00:24]} hxg4 {[%emt 0:00:28]} 40. hxg4 {[%emt 0:00:02]} Rb8 {[%emt 0:00:01]} 41. Kc5 {[%emt 0:00:14]} Nb6 {[%emt 0:00:12]} 42. Rb3 {[%emt 0:00:58]} Kf6 {[%emt 0:00:18]} 43. Bf2 {[%emt 0:00:10]} Ke7 {[%emt 0:00:32]} 44. Kc6 {[%emt 0:00:06]} Nc4 {[%emt 0:00:06]} 45. Bc5+ {[%emt 0:00:11]} Kd8 {[%emt 0:00:17]} 46. Bb4 {[%emt 0:01:04]} Kc8 {[%emt 0:00:18]} 47. Rc3 {[%emt 0:00:14]} Ne3 {[%emt 0:00:03]} 48. Bd6 {[%emt 0:00:18]} Nd5 {[%emt 0:00:04]} 49. Ra3 {[%emt 0:00:25]} Rb6+ {[%emt 0:00:01]} 50. Kc5 {[%emt 0:00:01]} Rb7 {[%emt 0:00:08]} 51. Be5 {[%emt 0:00:10]} g6 {[%emt 0:00:20]} 52. Ra8+ {[%emt 0:00:03]} Kd7 {[%emt 0:00:01]} 53. Rg8 {[%emt 0:00:05]} Ne7 {[%emt 0:00:32]} 54. Rg7 {[%emt 0:00:01]} Ke8 {[%emt 0:00:02]} 55. Bd6 {[%emt 0:00:04]} e5 {[%emt 0:00:14]} 56. b6 {[%emt 0:00:11]} e4 {[%emt 0:00:02]} 57. Rxe7+ {[%emt 0:00:20]} Rxe7 {[%emt 0:00:01]} 58. Bxe7 {[%emt 0:00:01]} Kd7 {[%emt 0:00:31]} 59. fxe4 {[%emt 0:00:20]} f3 {[%emt 0:00:12]} 60. Bh4 {[%emt 0:00:01]} g5 {[%emt 0:00:01]} 61. Bf2 {[%emt 0:00:02]} 1-0